[Event "1st Chessable Sunway Formentera 2022"]
[Site "Formentera Punta Prima"]
[Date "2022.05.06"]
[Round "8.16"]
[White "Galvan Cipriani, Viviana"]
[Black "Bernard, Jacques"]
[Result "0-1"]
[ECO "A16"]
[WhiteElo "2153"]
[BlackElo "2122"]
[Annotator "TA"]
[PlyCount "96"]
[EventDate "2022.05.05"]
[EventType "swiss"]
[EventCountry "ESP"]
[SourceTitle "playchess.com"]
[Source "ChessBase"]
[SourceQuality "1"]
[TimeControl "40/5400+30:1800+30"]

{[%evp 14,96,41,39,32,0,0,0,0,-39,-27,-63,-43,-45,-52,-39,-46,-44,-35,-50,-26,-27,-25,-40,-41,-48,-38,-43,-53,-46,-52,-93,-41,-31,-37,-145,-155,-160,-155,-475,-453,-493,-472,-474,-493,-492,-476,-464,-445,-626,-587,-610,-614,-595,-600,-581,-575,-645,-644,-602,-470,-470,-465,-471,-456,-460,-462,-472,-465,-664,-452,-433,-397,-717,-716,-708,-679,-693,-675,-691,-680,-767,-761,-816,-704]} 1. c4 {[%emt 0:00:36]} Nf6 {[%emt 0:00:12]} 2. Nc3 {[%emt 0:00:21]} d5 {[%emt 0:00:16]} 3. cxd5 {[%emt 0:00:32]} Nxd5 {[%emt 0:00:08]} 4. g3 {[%emt 0:00:05]} g6 {[%emt 0:01:01]} 5. Bg2 {[%emt 0:00:04]} Nb6 {[%emt 0:00:05]} 6. d3 {[%emt 0:00:07]} Bg7 {[%emt 0:00:07]} 7. Nf3 {[%emt 0:00:21]} Nc6 {[%emt 0:00:58]} 8. Be3 {[%emt 0:00:39]} e5 {[%emt 0:11:09] A16: English Opening: 1...Nf6 with ...d5.} 9. Qd2 {[%emt 0:00:35]} Nd4 {[%emt 0:03:41]} 10. Rc1 {[%emt 0:05:01]} Bg4 {[%emt 0:06:26] The position is equal.} 11. Bxd4 {[%emt 0:24:42]} exd4 {[%emt 0:01:33]} 12. Nb5 {[%emt 0:00:32][%cal Bc3b5,Bb5a3,Ba3c4,Bc4a5][%mdl 32] [#]} O-O $146 {[%emt 0:19:54]} (12... c6 $5 {[%cal Rc6b5]} 13. Na3 O-O $15) ({Predecessor:} 12... c6 13. Qf4 Bxf3 14. Nd6+ Qxd6 15. Qxd6 Bxg2 16. Rg1 Bd5 17. b3 Rd8 18. Qb4 Rd7 {0-1 (27) Dulhauste,A-Feroul,M France 1979}) 13. Qf4 {[%emt 0:07:15]} (13. Nxc7 Rc8 14. Nb5 Rxc1+ 15. Qxc1 Qd5) (13. Rxc7 $2 a6 14. Qg5 axb5 15. Rxb7 {[#]} Qd6 $1 16. Qxb5 (16. Qxg4 $2 Qc6 $19) 16... Rfb8 17. Rxb8+ Rxb8 $19) 13... Bxf3 {[%emt 0:06:27]} 14. Bxf3 {[%emt 0:00:42]} c6 {[%emt 0:06:37]} 15. Na3 {[%emt 0:00:52]} (15. Nd6 g5 16. Nxb7 gxf4 $17) 15... Re8 {[%emt 0:04:43]} 16. O-O {[%emt 0:00:59]} Qe7 {[%emt 0:01:23]} 17. Nc4 {[%emt 0:02:00]} Rad8 {[%emt 0:09:43]} 18. Na5 {[%emt 0:07:52]} Nd5 {[%emt 0:02:32]} 19. Qd2 {[%emt 0:00:29]} Bf6 {[%emt 0:02:24]} 20. Rc4 {[%emt 0:05:39]} h5 {[%emt 0:04:48]} 21. Nb3 {[%emt 0:01:44]} h4 {[%emt 0:01:13]} 22. Re1 {[%emt 0:06:13]} hxg3 {[%emt 0:04:00]} (22... Kg7 $17) 23. hxg3 $15 {[%emt 0:01:47]} Kg7 {[%emt 0:00:24]} 24. Bxd5 {[%emt 0:19:28]} ({Don't blunder} 24. Nxd4 $2 Nb6 25. Rxc6 Bxd4 $19) (24. Kg2 $1 $15) 24... Rxd5 $17 {[%emt 0:00:25][%cal Bd8d5,Bd5h5,Bh5h1][%mdl 32]} 25. e4 {[%emt 0:00:14]} Rh5 {[%emt 0:05:03] [#] Hoping for ...Reh8.} 26. f4 $2 {[%emt 0:00:07] This costs White the game.} ({Not} 26. Nxd4 $2 Qd7 27. Ne2 (27. e5 $2 Qh3 $19) 27... Qh3 $19) (26. Qd1 $17) 26... Reh8 {[%emt 0:01:12] aiming for ...Rh1+.} 27. Qg2 {[%emt 0:00:16] Against Rh1+} Qd7 {[%emt 0:00:23]} 28. e5 {[%emt 0:07:54]} Rh1+ {[%emt 0:00:27]} 29. Kf2 {[%emt 0:00:19]} R1h2 {[%emt 0:00:29]} 30. exf6+ {[%emt 0:00:06]} Kxf6 {[%emt 0:00:15]} 31. Rxd4 {[%emt 0:00:09]} (31. Rg1 $142) 31... Rxg2+ $19 {[%emt 0:01:48]} 32. Kxg2 {[%emt 0:00:05]} Qh3+ {[%emt 0:00:04]} 33. Kf3 {[%emt 0:00:53]} Qh5+ {[%emt 0:00:19]} 34. Ke3 {[%emt 0:00:46]} Qh2 {[%emt 0:00:45][%csl LRb2,LRg3]} 35. Re2 {[%emt 0:01:16]} Re8+ {[%emt 0:01:40]} 36. Re4 {[%emt 0:00:23]} Qxg3+ {[%emt 0:00:09]} 37. Kd2 {[%emt 0:00:12]} Rxe4 {[%emt 0:00:21]} 38. Rxe4 {[%emt 0:00:06][%mdl 4096] Endgame KQ-KRN} Qf2+ {[%emt 0:00:13]} 39. Kc3 {[%emt 0:00:08]} c5 {[%emt 0:00:41] Against Nd4} 40. Na5 {[%emt 0:00:00]} b5 {[%emt 0:00:00] Threatens to win with ...b4+.} 41. a3 {[%emt 0:02:06] Against b4+} (41. Nb3 $142) 41... Qg1 {[%emt 0:14:35]} 42. Nb3 {[%emt 0:18:35] Prevents Qc1+.} Qd1 {[%emt 0:09:34][%cal Oc5c4] Strongly threatening ...c4!} 43. Re5 $2 {[%emt 0:03:03]} (43. Nxc5 Qc1+ 44. Kb4) 43... b4+ {[%emt 0:05:18] Black is clearly winning.} 44. axb4 {[%emt 0:01:46]} cxb4+ {[%emt 0:00:19]} 45. Kxb4 {[%emt 0:00:08]} Qxd3 {[%emt 0:00:18]} 46. Rc5 {[%emt 0:01:41]} Qd6 {[%emt 0:00:26]} 47. Kb5 {[%emt 0:06:29]} Qxf4 {[%emt 0:01:04]} 48. Na5 {[%emt 0:00:10]} Qb8+ {[%emt 0:00:35] Weighted Error Value: White=0.46/Black=0.12 (very precise)} 0-1

[Event "1st Chessable Sunway Formentera 2022"]
[Site "Formentera Punta Prima"]
[Date "2022.05.06"]
[Round "8.17"]
[White "Roig Roig, Marc"]
[Black "Marull Luber, Jordi"]
[Result "1-0"]
[ECO "B07"]
[WhiteElo "1895"]
[BlackElo "1793"]
[Annotator "NA RC COMBH"]
[PlyCount "47"]
[EventDate "2022.05.05"]
[EventType "swiss"]
[EventCountry "ESP"]
[SourceTitle "playchess.com"]
[Source "ChessBase"]
[SourceQuality "1"]
[TimeControl "40/5400+30:1800+30"]

1. e4 {[%emt 0:00:24]} g6 {[%emt 0:00:15]} 2. d4 {[%emt 0:00:42]} Bg7 {[%emt 0:00:16]} 3. Nc3 {[%emt 0:00:13]} d6 {[%emt 0:00:12]} 4. Be3 {[%emt 0:00:15]} Nf6 {[%emt 0:00:22]} 5. f3 {[%emt 0:01:02]} O-O {[%emt 0:03:45]} 6. Qd2 {[%emt 0:00:17]} Nc6 {[%emt 0:01:16]} 7. O-O-O {[%emt 0:00:19]} e5 {[%emt 0:02:54]} 8. d5 {[%emt 0:01:49]} Ne7 {[%emt 0:01:19]} 9. g4 {[%emt 0:03:52]} a6 {[%emt 1:24:41]} 10. Bh6 {[%emt 0:05:56]} b5 {[%emt 0:00:00]} 11. h4 {[%emt 0:01:13]} b4 {[%emt 0:00:00]} 12. Nce2 {[%emt 0:01:56]} Bxh6 {[%emt 0:00:00]} 13. Qxh6 {[%emt 0:00:06]} Bxg4 {[%emt 0:02:00]} 14. Qg5 {[%emt 0:03:40]} Bxf3 {[%emt 0:00:00]} 15. Nxf3 {[%emt 0:00:50]} Nxe4 {[%emt 0:00:00]} 16. Qg2 {[%emt 0:05:22]} f5 {[%emt 0:00:00]} 17. h5 {[%emt 0:03:08]} Qe8 {[%emt 0:00:00]} 18. Nh4 {[%emt 1:08:26]} Qf7 {[%emt 0:00:00]} 19. hxg6 {[%emt 0:00:00]} hxg6 {[%emt 0:00:00]} 20. Rd3 {[%emt 0:00:00]} Qf6 {[%emt 0:00:00]} 21. Ng3 {[%emt 0:00:00]} Nxg3 {[%emt 0:00:00]} 22. Rxg3 {[%emt 0:00:00]} Kf7 {[%emt 0:00:00]} 23. Nxg6 {[%emt 0:00:00]} Nxg6 {[%emt 0:00:00]} 24. Rh7+ {[%emt 0:00:00]} 1-0

[Event "1st Chessable Sunway Formentera 2022"]
[Site "Formentera Punta Prima"]
[Date "2022.05.09"]
[Round "9.1"]
[White "Sasikiran, Krishnan"]
[Black "Gukesh D"]
[Result "0-1"]
[ECO "B31"]
[WhiteElo "2651"]
[BlackElo "2659"]
[Annotator "TA"]
[PlyCount "94"]
[EventDate "2022.05.05"]
[EventType "swiss"]
[EventCountry "ESP"]
[SourceTitle "playchess.com"]
[Source "ChessBase"]
[SourceQuality "1"]
[TimeControl "40/5400+30:1800+30"]

{[%evp 18,94,0,0,12,0,0,0,0,0,0,0,0,0,0,-45,-9,-45,0,-21,0,-54,-7,-15,-9,-15,-20,-17,-11,-12,-15,-46,-37,-43,-45,-37,-33,-30,-34,-41,0,-31,-45,-58,-30,-49,-22,-34,-44,-48,-45,-112,-110,-162,-158,-201,-215,-237,-209,-299,-248,-242,-223,-308,-222,-287,-297,-321,-316,-423,-402,-586,-556,-584,-574,-561,-529,-826,-810]} 1. e4 {[%emt 0:00:03]} c5 {[%emt 0:00:59]} 2. Nf3 {[%emt 0:00:19]} Nc6 {[%emt 0:00:07]} 3. Bb5 {[%emt 0:00:29]} g6 {[%emt 0:01:58]} 4. O-O {[%emt 0:00:21]} Bg7 {[%emt 0:00:05]} 5. c3 {[%emt 0:00:26]} Nf6 {[%emt 0:00:57]} 6. Re1 {[%emt 0:00:24]} O-O {[%emt 0:00:20]} 7. d4 {[%emt 0:00:36]} d5 {[%emt 0:00:06]} 8. e5 {[%emt 0:00:38]} Ne4 {[%emt 0:00:06]} 9. h3 {[%emt 0:04:10]} cxd4 {[%emt 0:01:32]} 10. cxd4 {[%emt 0:01:19]} Bd7 {[%emt 0:06:58][%cal Oc6e5] [#] B31: Sicilian: 2...Nc6 3 Bb5 g6.} 11. Ba4 $146 {[%emt 0:11:27]} ({Predecessor:} 11. Bd3 Be6 12. Nbd2 Nxd2 13. Bxd2 h6 14. Rc1 Qd7 15. Be3 h5 16. Ng5 Nb4 17. Nxe6 Qxe6 18. Bb1 f5 19. exf6 Qxf6 {1-0 (77) Muminova,N (2321)-Popova,N (2314) Khanty-Mansiysk 2014}) 11... Rc8 {[%emt 0:05:11]} 12. Bb3 {[%emt 0:06:59]} Bf5 {[%emt 0:04:16] The position is equal.} 13. Nc3 {[%emt 0:07:31]} Nxc3 {[%emt 0:04:27]} 14. bxc3 {[%emt 0:00:09]} Na5 {[%emt 0:00:06]} 15. Bd2 {[%emt 0:11:21]} Nc4 {[%emt 0:00:46]} 16. Nh4 {[%emt 0:06:44]} Bd7 {[%emt 0:05:18]} 17. Nf3 {[%emt 0:04:42]} Bf5 {[%emt 0:00:42]} 18. Nh4 {[%emt 0:01:48]} Bd7 {[%emt 0:00:05]} 19. Nf3 {[%emt 0:00:58]} b5 {[%emt 0:00:42]} (19... Nxd2 $15 20. Qxd2 Qa5) 20. Bg5 {[%emt 0:12:21]} a5 {[%emt 0:02:06]} 21. Rc1 {[%emt 0:02:15]} Bf5 {[%emt 0:02:49]} 22. Nh4 {[%emt 0:01:42]} Be6 {[%emt 0:00:11]} 23. Nf3 {[%emt 0:00:22]} Qd7 {[%emt 0:00:21]} 24. Nh2 {[%emt 0:06:26]} Rc7 {[%emt 0:02:34]} 25. h4 {[%emt 0:05:04]} h6 {[%emt 0:10:09]} 26. Bf4 {[%emt 0:02:24]} Rfc8 {[%emt 0:04:02]} 27. Nf1 {[%emt 0:03:05]} Nb6 {[%emt 0:15:42]} 28. Bd2 {[%emt 0:02:08]} Nc4 {[%emt 0:05:32]} 29. Bxc4 {[%emt 0:03:38]} dxc4 {[%emt 0:01:13]} 30. Ne3 {[%emt 0:00:39]} b4 {[%emt 0:01:27][%cal Bb5b4,Bb4b3][%mdl 32]} (30... h5 $5 {[%cal Rb5b4]}) 31. h5 {[%emt 0:01:56]} g5 {[%emt 0:06:36]} 32. Qf3 {[%emt 0:01:10]} Qb5 {[%emt 0:07:27]} 33. Rb1 {[%emt 0:01:51]} Rd7 {[%emt 0:00:57][%cal Og7e5] Against d5} 34. Qe4 {[%emt 0:00:10] [#]} ({White should try} 34. cxb4 $15 c3 35. Bxc3 Rxc3 36. Qa8+ Bf8 37. bxa5) 34... Qb7 $1 $17 {[%emt 0:03:14]} (34... Bxe5 $2 35. d5 Bg7 36. dxe6 $18) 35. Qc2 {[%emt 0:00:39]} (35. Qxb7 $17 Rxb7 36. g4) 35... b3 $19 {[%emt 0:00:43]} 36. Qc1 {[%emt 0:00:35]} a4 {[%emt 0:00:23]} 37. f3 {[%emt 0:01:02]} Qa7 {[%emt 0:02:04][%cal Og7e5]} 38. Ng4 {[%emt 0:00:37]} (38. Re2 $142) 38... Rc6 {[%emt 0:02:26]} ({Inferior is} 38... bxa2 39. Ra1 $15) 39. Be3 {[%emt 0:00:28][%cal Od4d5] And now d5! would win.} Qa5 {[%emt 0:00:46]} ({Stronger than} 39... bxa2 40. Ra1 Bxg4 41. fxg4 $11) 40. a3 {[%emt 0:00:00]} f5 {[%emt 0:00:00]} 41. exf6 {[%emt 0:02:28]} exf6 {[%emt 0:01:45][%cal Be7f6,Bf6f5][%mdl 32]} 42. Nf2 {[%emt 0:01:53]} Bf7 {[%emt 0:00:46]} 43. Ne4 {[%emt 0:02:36]} f5 {[%emt 0:03:48]} 44. Nc5 {[%emt 0:00:05] [#]} (44. Nd2 {was necessary.}) 44... Rxc5 $1 {[%emt 0:00:40][%mdl 512] Black is clearly winning.} 45. dxc5 {[%emt 0:00:04]} Qxc3 {[%emt 0:00:05]} 46. c6 {[%emt 0:00:07]} Rc7 {[%emt 0:00:54]} 47. Qd1 {[%emt 0:00:12] Qd8+ is the strong threat.} Qf6 {[%emt 0:00:21] Prevents Qd8+.  Weighted Error Value: White=0.36/Black=0.10 (very precise)} 0-1

[Event "1st Chessable Sunway Formentera 2022"]
[Site "Formentera Punta Prima"]
[Date "2022.05.09"]
[Round "9.2"]
[White "Sargsyan, Shant"]
[Black "Cuenca Jimenez, Jose Fernando"]
[Result "1-0"]
[ECO "E45"]
[WhiteElo "2641"]
[BlackElo "2551"]
[Annotator "TA"]
[PlyCount "103"]
[EventDate "2022.05.05"]
[EventType "swiss"]
[EventCountry "ESP"]
[SourceTitle "playchess.com"]
[Source "ChessBase"]
[SourceQuality "1"]
[TimeControl "40/5400+30:1800+30"]

{[%evp 13,103,10,18,10,50,35,39,50,41,42,65,29,33,14,14,26,20,12,39,16,131,139,214,206,261,266,266,251,242,47,50,43,40,41,46,61,42,37,33,53,50,0,0,0,4,9,22,0,10,0,0,0,0,0,19,11,32,32,45,27,31,0,21,20,76,77,75,68,31,47,276,94,83,-114,38,87,4290,4132,2345,2186,1987,1987,1430,1252,1291,1227,29989,29990,29990,29991,29997,29998]} 1. d4 {[%emt 0:07:17]} Nf6 {[%emt 0:00:08]} 2. c4 {[%emt 0:00:12]} e6 {[%emt 0:00:07]} 3. Nc3 {[%emt 0:00:12]} Bb4 {[%emt 0:00:39]} 4. e3 {[%emt 0:00:29]} b6 {[%emt 0:00:27]} 5. Nge2 {[%emt 0:00:29]} Ba6 {[%emt 0:00:09]} 6. Ng3 {[%emt 0:00:41]} O-O {[%emt 0:07:29]} 7. e4 {[%emt 0:00:31]} Nc6 {[%emt 0:08:25]} 8. Bd3 {[%emt 0:00:15] E45: Nimzo-Indian: Rubinstein: 4...b6 5 Ne2 Ba6.} Ne8 {[%emt 0:06:53]} 9. O-O $1 {[%emt 0:04:28]} Bxc3 {[%emt 0:25:42]} (9... Nxd4 $2 10. Qa4 $18) 10. bxc3 {[%emt 0:00:17] White is slightly better.} Na5 {[%emt 0:00:55]} (10... Nd6 11. e5 Ne8 12. Ba3 $16 (12. Qh5 f5 $16)) 11. Qe2 {[%emt 0:05:27]} c5 {[%emt 0:00:52]} (11... Nd6 12. e5 Ne8 13. Ba3 $16) 12. e5 {[%emt 0:06:51]} d5 $1 {[%emt 0:07:13][%cal Ra6c4]} 13. cxd5 {[%emt 0:18:09]} (13. Qh5 f5 $15) 13... Bxd3 {[%emt 0:02:10]} 14. Qxd3 {[%emt 0:00:01]} Qxd5 {[%emt 0:00:11] [#]} 15. Nh5 $146 {[%emt 0:00:35]} ({Predecessor:} 15. Ne4 f5 16. Nd2 Rd8 17. Nf3 Rf7 18. Rd1 cxd4 19. cxd4 Rc7 20. Bd2 Nc4 21. Qb3 {0-1 (37) Rosales,P (1810)-Condori Aranya,E (2163) Arequipa 2013}) 15... f5 {[%emt 0:12:06]} 16. Rd1 {[%emt 0:03:23]} (16. Nf4 $5 {[%cal Rf4d5]} Qd7 17. d5 exd5 18. Nxd5 $11 (18. Qxd5+ Qxd5 19. Nxd5 Rd8 $11)) 16... Rd8 {[%emt 0:06:44]} (16... Qc6 $11) 17. Bg5 $1 $16 {[%emt 0:01:17] And now Nf4 would win.} Rd7 {[%emt 0:04:09]} (17... Rc8 $16) 18. Nf4 $18 {[%emt 0:01:43]} Qc6 {[%emt 0:00:04]} 19. d5 {[%emt 0:00:31]} exd5 {[%emt 0:00:42]} 20. e6 {[%emt 0:01:03]} (20. Nxd5 Rff7 $11) 20... Rb7 {[%emt 0:00:04]} 21. e7 $2 {[%emt 0:01:21]} (21. Qxd5 $6 Qxd5 22. Nxd5 Nc6) (21. Nxd5 $18 {Hoping for Ne7+.} Qxe6 22. Re1) 21... Rf7 $14 {[%emt 0:00:14] Strongly threatening ...h6.} 22. Nxd5 {[%emt 0:00:13]} (22. Qxd5 $2 h6 23. Qd8 hxg5 $19) 22... h6 {[%emt 0:03:48]} 23. Bf4 {[%emt 0:00:42]} Qa4 $1 {[%emt 0:06:13]} 24. Qg3 $1 {[%emt 0:18:03] aiming for Bxh6.} Nc6 {[%emt 0:01:35]} 25. Bxh6 $1 {[%emt 0:01:10] Threatens to win with Bg5.} Nxe7 {[%emt 0:00:33]} 26. Nf4 {[%emt 0:01:06] Rd8 is the strong threat.} Rd7 {[%emt 0:00:47] Prevents Rd8.} 27. Rxd7 {[%emt 0:00:37]} (27. Re1 $1 $14) 27... Qxd7 $11 {[%emt 0:00:01]} 28. Bg5 {[%emt 0:00:21]} Nf6 {[%emt 0:02:26]} 29. Bxf6 {[%emt 0:04:54]} Rxf6 {[%emt 0:00:04]} 30. h4 {[%emt 0:01:46]} Rd6 {[%emt 0:00:31]} 31. Kh2 {[%emt 0:00:30]} Nd5 {[%emt 0:01:33]} 32. Re1 {[%emt 0:04:32][%cal Ba1e1,Be1e5,Be5d5][%mdl 32]} Nxf4 {[%emt 0:00:15]} 33. Qxf4 {[%emt 0:00:03][%mdl 4096] Endgame KQR-KQR} Rf6 {[%emt 0:00:29]} 34. Re5 {[%emt 0:00:59]} (34. g3 {feels hotter.} Qd6 35. Re8+ Kf7 36. Ra8) 34... Kh7 {[%emt 0:00:49]} (34... Qd3 {with more complications.} 35. Re7 a6 36. Qc7 Qd6+) 35. g3 {[%emt 0:00:31]} Rf7 {[%emt 0:01:38]} 36. Qg5 {[%emt 0:00:55]} Kg8 {[%emt 0:01:08]} 37. c4 {[%emt 0:01:42]} Rf6 {[%emt 0:00:28]} (37... f4 $5 {[%cal Rf4g3]}) 38. Rd5 {[%emt 0:00:55]} Qf7 {[%emt 0:00:08]} (38... Qe6 $11 {remains equal.}) 39. Rd8+ $16 {[%emt 0:00:54]} Kh7 {[%emt 0:00:03]} 40. Qf4 $1 {[%emt 0:00:00] White is more active.} Qe7 {[%emt 0:00:00]} 41. Qb8 $40 {[%emt 0:05:43][%mdl 128] White is up to no good.} f4 $2 {[%emt 0:16:51]} (41... Kg6 $14) 42. h5 $2 {[%emt 0:13:17]} ({Inferior is} 42. gxf4 Rf8 43. Rxf8 Qxh4+ 44. Kg2 Qg4+ 45. Kf1 Qd1+ 46. Kg2 Qg4+ 47. Kh1 Qh4+ 48. Kg1 Qg4+ 49. Kf1 Qd1+ 50. Kg2 Qg4+ $11) (42. Rh8+ $18 Kg6 43. gxf4 (43. Qg8 $2 fxg3+ 44. Kh3 Qd7+ 45. Kg2 Qc6+ 46. Qd5 Qxd5+ 47. cxd5 Rxf2+ 48. Kxg3 Rxa2 $19)) 42... Kh6 {[%emt 0:04:20]} (42... fxg3+ $2 43. Kxg3 Qxd8 44. Qxd8 $18) 43. Rh8+ $1 {[%emt 0:00:43]} Kg5 {[%emt 0:00:14]} 44. Re8 {[%emt 0:00:19]} Qf7 {[%emt 0:10:25][%mdl 8192] [#]} (44... Qd7 $16) 45. Qe5+ $1 $18 {[%emt 0:07:36]} Rf5 {[%emt 0:00:01]} 46. gxf4+ {[%emt 0:00:18][%cal Bg3f4,Bf4f5][%mdl 32]} Kxh5 {[%emt 0:00:05]} 47. Rh8+ {[%emt 0:00:16]} Kg6 {[%emt 0:00:22] [#]} 48. Qe4 $1 {[%emt 0:00:11]} Qf6 {[%emt 0:02:29]} 49. Kg3 {[%emt 0:04:04] Kg4 would kill now.} Qd4 {[%emt 0:00:13]} 50. Qe8+ {[%emt 0:02:23] White mates.} Rf7 {[%emt 0:00:01]} 51. f5+ $1 {[%emt 0:00:08]} Kg5 {[%emt 0:01:01] [#]} 52. Rh5+ $1 {[%emt 0:00:26][%mdl 512] Weighted Error Value: White=0.18 (very precise) /Black=0.37} 1-0

[Event "1st Chessable Sunway Formentera 2022"]
[Site "Formentera Punta Prima"]
[Date "2022.05.09"]
[Round "9.3"]
[White "Santos Latasa, Jaime"]
[Black "Yankelevich, Lev"]
[Result "1-0"]
[ECO "E94"]
[WhiteElo "2672"]
[BlackElo "2473"]
[Annotator "TA RC"]
[PlyCount "112"]
[EventDate "2022.05.05"]
[EventType "swiss"]
[EventCountry "ESP"]
[SourceTitle "playchess.com"]
[Source "ChessBase"]
[SourceQuality "1"]
[TimeControl "40/5400+30:1800+30"]

{[%evp 26,112,15,20,29,22,20,15,25,15,15,11,8,7,14,12,11,0,0,6,4,0,0,0,0,0,0,0,0,0,0,0,32,18,18,0,31,18,38,14,16,13,67,0,0,0,0,0,0,0,0,0,0,0,0,0,0,0,0,0,0,0,8,8,8,8,8,8,8,8,16,19,1563,1491,29973,29974,29974,1697,1008,600,29976,29977,29979,29980,29980,29981,29993,29994,29994]} 1. c4 {[%emt 0:00:35]} Nf6 {[%emt 0:02:00]} 2. Nf3 {[%emt 0:00:23]} g6 {[%emt 0:00:15]} 3. Nc3 {[%emt 0:00:09]} Bg7 {[%emt 0:00:04]} 4. e4 {[%emt 0:00:04]} d6 {[%emt 0:00:02]} 5. d4 {[%emt 0:00:08]} O-O {[%emt 0:02:21]} 6. Be2 {[%emt 0:00:16]} e5 {[%emt 0:00:04]} 7. O-O {[%emt 0:00:09]} exd4 {[%emt 0:00:02]} 8. Nxd4 {[%emt 0:00:10]} Re8 {[%emt 0:00:02]} 9. f3 {[%emt 0:00:10]} Nc6 {[%emt 0:00:01]} 10. Be3 {[%emt 0:00:46]} Nh5 {[%emt 0:00:05]} 11. Qd2 {[%emt 0:01:29]} Nxd4 {[%emt 0:00:12]} 12. Bxd4 {[%emt 0:00:09]} Nf4 {[%emt 0:00:01]} 13. Rfd1 {[%emt 0:06:15]} Bxd4+ {[%emt 0:03:04]} 14. Qxd4 {[%emt 0:00:16]} Nxe2+ {[%emt 0:00:03] E94: King's Indian: Classical: 6 Be2 e5 7 0-0: Various Black 7th moves.} 15. Nxe2 {[%emt 0:00:07]} b6 {[%emt 0:00:01] Against c5} 16. Nc3 {[%emt 0:03:23][%cal Oe4e5]} Bb7 {[%emt 0:02:17] The position is equal.} 17. Re1 $5 {[%emt 0:02:04][%mdl 4] Leaves trodden paths.} Qg5 {[%emt 0:02:43]} 18. Rad1 {[%emt 0:00:29]} Re7 {[%emt 0:02:27]} 19. Nd5 {[%emt 0:05:20]} Bxd5 {[%emt 0:00:06]} 20. Qxd5 {[%emt 0:00:05]} Qxd5 {[%emt 0:00:30]} 21. cxd5 $11 {[%emt 0:00:06][%mdl 4096] Endgame KRR-KRR} Rc8 {[%emt 0:04:24] [#]} 22. Kf2 $146 {[%emt 0:01:26]} ({Predecessor:} 22. Rc1 c5 23. dxc6 Rec7 24. Re3 Rxc6 25. Rxc6 Rxc6 26. Rc3 Rc5 27. Kf2 Kg7 28. Ke3 {½-½ (45) Feller,S (2576)-Degraeve,J (2559) Nimes 2009}) 22... c5 {[%emt 0:00:23]} 23. dxc6 {[%emt 0:00:20]} Rxc6 {[%emt 0:00:04]} 24. Re2 {[%emt 0:00:06]} Kf8 {[%emt 0:00:35]} 25. Rd4 {[%emt 0:00:52]} Rec7 {[%emt 0:01:38]} 26. Red2 {[%emt 0:00:18]} Ke7 {[%emt 0:01:21]} 27. Rd5 {[%emt 0:00:49]} h5 {[%emt 0:07:18]} 28. Ke3 {[%emt 0:02:07]} a6 {[%emt 0:02:17]} 29. h4 {[%emt 0:00:56]} b5 {[%emt 0:00:24]} 30. Kf4 {[%emt 0:02:20]} Rc8 {[%emt 0:08:32]} 31. a3 {[%emt 0:02:26]} b4 {[%emt 0:09:02]} 32. axb4 {[%emt 0:02:28]} Rb8 {[%emt 0:00:04] Inhibits b5.} 33. R2d4 {[%emt 0:00:30]} Rcb6 {[%emt 0:04:50]} (33... Rbb6 $1 $11) 34. e5 {[%emt 0:00:39] White is more active.} (34. b5 $14) 34... Rxb4 {[%emt 0:01:01]} 35. exd6+ {[%emt 0:00:16]} Kd7 {[%emt 0:00:02]} 36. g4 {[%emt 0:01:00]} Rxd4+ {[%emt 0:08:00]} 37. Rxd4 {[%emt 0:00:10]} Rxb2 {[%emt 0:02:12] KR-KR} 38. Kg5 {[%emt 0:00:29]} a5 {[%emt 0:17:10]} 39. Rf4 {[%emt 0:07:31]} Rb5+ {[%emt 0:01:42]} (39... Kxd6 40. Rxf7 a4 41. Kxg6 hxg4 42. fxg4 $16 (42. Rf6+ Ke7 $16)) 40. Kh6 $1 {[%emt 0:00:00]} hxg4 {[%emt 0:00:00]} ({But not} 40... Kxd6 41. Rxf7 a4 42. Kxg6) 41. fxg4 {[%emt 0:01:26]} f5 {[%emt 0:16:09] ...Rb4 is the strong threat.} 42. h5 {[%emt 0:02:25]} ({Don't take} 42. g5 $6 Rb4 43. Rf3 (43. Rxb4 axb4 44. h5 gxh5 $11) 43... Rxh4+ 44. Kxg6 Kxd6 $14) 42... gxh5 {[%emt 0:00:30]} 43. gxf5 {[%emt 0:02:58]} Kxd6 {[%emt 0:07:41]} 44. f6 {[%emt 0:00:59] Threatening mate with f7.} Rb8 $1 {[%emt 0:12:15]} (44... Rb4 45. Rxb4 axb4 46. f7 Ke7 47. Kg7 Ke6 48. f8=Q b3 49. Qf7+ Ke5 50. Qxb3) 45. Ra4 {[%emt 0:15:53]} Ke6 {[%emt 0:00:07]} 46. Kg7 {[%emt 0:00:13]} Rb7+ {[%emt 0:00:02]} 47. Kg6 {[%emt 0:00:23] White wants to mate with Rf4.} Rb1 {[%emt 0:00:10]} 48. Re4+ {[%emt 0:00:12][%mdl 1024] White has compensation.} Kd5 $2 {[%emt 0:00:05][%mdl 8192] [#] Loses the game.} (48... Kd7 $11) 49. Rf4 $1 $18 {[%emt 0:00:46] f7 would kill now.} h4 {[%emt 0:16:24]} 50. f7 {[%emt 0:02:21]} Rb6+ {[%emt 0:00:34]} 51. Kf5 {[%emt 0:03:59]} (51. Rf6 $142 Rb8 52. Rf5+ Ke4 53. Rh5 Ra8 54. Kg7 Kf3 55. Rxh4 Ra7 56. Kg8 Ra8+ 57. f8=Q+ Rxf8+ 58. Kxf8) 51... Rb8 {[%emt 0:00:08] [#]} 52. Ra4 $1 {[%emt 0:00:14]} h3 {[%emt 0:03:23]} 53. Rxa5+ {[%emt 0:01:09] White mates.} Kd6 {[%emt 0:00:27]} 54. Kf6 {[%emt 0:00:20]} Rh8 {[%emt 0:00:35] [#]} 55. Rh5 $1 {[%emt 0:00:19][%mdl 512]} h2 {[%emt 0:01:37]} (55... Rb8 56. Kg7) 56. Rxh8 {[%emt 0:00:11]} h1=N {[%emt 0:00:02] Weighted Error Value: White=0.05 (flawless) /Black=0.32} 1-0